[Event "Late-Titled-Tuesday-Blitz-March-12-2024"]
[Site "Chess.com"]
[Date "2024.03.12"]
[Round "9"]
[White "DanielNaroditsky"]
[Black "Alphafischer2019"]
[Result "1-0"]
[WhiteElo "3067"]
[BlackElo "2759"]
[TimeControl "180+1"]
[EndTime "15:41:55 PDT"]
[Termination "DanielNaroditsky won by resignation"]

1. e4 {[%clk 0:02:50.7]} 1... e6 {[%clk 0:02:59.1]} 2. d4 {[%clk 0:02:51.1]}
2... d5 {[%clk 0:02:59.8]} 3. e5 {[%clk 0:02:51.9]} 3... c5 {[%clk 0:02:59.4]}
4. Nf3 {[%clk 0:02:52.8]} 4... cxd4 {[%clk 0:02:59.1]} 5. Bd3 {[%clk 0:02:52.8]}
5... Nc6 {[%clk 0:02:57.6]} 6. O-O {[%clk 0:02:53.4]} 6... Be7 {[%clk
0:02:49.4]} 7. Re1 {[%clk 0:02:49.9]} 7... Bd7 {[%clk 0:02:46.6]} 8. Nbd2 {[%clk
0:02:49.8]} 8... Qb6 {[%clk 0:02:34.8]} 9. Nb3 {[%clk 0:02:47.6]} 9... a5 {[%clk
0:02:33.6]} 10. Bf1 {[%clk 0:02:47.7]} 10... a4 {[%clk 0:02:28.3]} 11. Nbxd4
{[%clk 0:02:47.8]} 11... Nxd4 {[%clk 0:02:28.1]} 12. Nxd4 {[%clk 0:02:48.7]}
12... Bc5 {[%clk 0:02:06.5]} 13. c3 {[%clk 0:02:39.6]} 13... Ne7 {[%clk
0:02:06.7]} 14. Rb1 {[%clk 0:02:28.3]} 14... O-O {[%clk 0:01:57.5]} 15. Bd3
{[%clk 0:02:17.8]} 15... Bxd4 {[%clk 0:01:27.9]} 16. cxd4 {[%clk 0:02:18.7]}
16... Nf5 {[%clk 0:01:28.4]} 17. Be3 {[%clk 0:02:14.3]} 17... Rfc8 {[%clk
0:01:24.1]} 18. Qg4 {[%clk 0:02:08.3]} 18... Bb5 {[%clk 0:01:06.5]} 19. Bxf5
{[%clk 0:02:07.8]} 19... exf5 {[%clk 0:01:07.4]} 20. Qxf5 {[%clk 0:02:07.6]}
20... Qg6 {[%clk 0:01:08.1]} 21. Qh3 {[%clk 0:02:01.7]} 21... Bd3 {[%clk
0:01:07]} 22. Rbc1 {[%clk 0:02:01.8]} 22... Bf5 {[%clk 0:01:07.6]} 23. Qh4
{[%clk 0:01:57.9]} 23... Qe6 {[%clk 0:01:05.1]} 24. h3 {[%clk 0:01:57]} 24... h6
{[%clk 0:01:03.8]} 25. Kh2 {[%clk 0:01:47.4]} 25... Rxc1 {[%clk 0:00:54.7]} 26.
Rxc1 {[%clk 0:01:46.8]} 26... Rc8 {[%clk 0:00:55.6]} 27. Rxc8+ {[%clk
0:01:44.8]} 27... Qxc8 {[%clk 0:00:56.5]} 28. Qe7 {[%clk 0:01:44]} 28... Qd7
{[%clk 0:00:56.2]} 29. Qb4 {[%clk 0:01:42.7]} 29... Qc6 {[%clk 0:00:54.1]} 30.
b3 {[%clk 0:01:41]} 30... axb3 {[%clk 0:00:53.7]} 31. axb3 {[%clk 0:01:41.9]}
31... Be4 {[%clk 0:00:50.5]} 32. Qe7 {[%clk 0:01:31.9]} 32... Bf5 {[%clk
0:00:46.1]} 33. g4 {[%clk 0:01:30.4]} 33... Bg6 {[%clk 0:00:42.7]} 34. Kg3
{[%clk 0:01:28.6]} 34... Kh7 {[%clk 0:00:42.8]} 35. h4 {[%clk 0:01:28]} 35... h5
{[%clk 0:00:34.1]} 36. Qg5 {[%clk 0:01:26.8]} 36... hxg4 {[%clk 0:00:18.6]} 37.
h5 {[%clk 0:01:27.7]} 37... Be4 {[%clk 0:00:18.1]} 38. Qxg4 {[%clk 0:01:28.1]}
38... Qe6 {[%clk 0:00:18.7]} 39. Qh4 {[%clk 0:01:28.3]} 39... Qf5 {[%clk
0:00:17.9]} 40. Bf4 {[%clk 0:01:28.9]} 40... Bd3 {[%clk 0:00:15]} 41. f3 {[%clk
0:01:27.9]} 41... Bc2 {[%clk 0:00:10.5]} 42. b4 {[%clk 0:01:24.5]} 42... Qd3
{[%clk 0:00:08.6]} 43. h6 {[%clk 0:01:23]} 43... Qg6+ {[%clk 0:00:09.1]} 44. Kf2
{[%clk 0:01:21.5]} 44... gxh6 {[%clk 0:00:10]} 45. Qe7 {[%clk 0:01:22]} 45... b5
{[%clk 0:00:07.3]} 46. Qc7 {[%clk 0:01:17.7]} 46... Bd3 {[%clk 0:00:06.5]} 47.
Ke3 {[%clk 0:01:14.5]} 47... Bc4 {[%clk 0:00:07.1]} 48. Kf2 {[%clk 0:01:13.3]}
48... Qd3 {[%clk 0:00:07.8]} 49. e6 {[%clk 0:01:12.2]} 49... Kh8 {[%clk
0:00:08.7]} 50. Be5+ {[%clk 0:01:11.3]} 1-0

[Event "Late-Titled-Tuesday-Blitz-March-12-2024"]
[Site "Chess.com"]
[Date "2024.03.12"]
[Round "9"]
[White "Jagerrmeisterr"]
[Black "xasid81"]
[Result "1-0"]
[WhiteElo "2731"]
[BlackElo "2580"]
[TimeControl "180+1"]
[EndTime "15:41:59 PDT"]
[Termination "Jagerrmeisterr won by resignation"]

1. e4 {[%clk 0:03:00.9]} 1... d5 {[%clk 0:02:38.1]} 2. exd5 {[%clk 0:03:00.7]}
2... Qxd5 {[%clk 0:02:39]} 3. Nc3 {[%clk 0:03:00.8]} 3... Qa5 {[%clk 0:02:37.4]}
4. Bc4 {[%clk 0:03:00.4]} 4... Nf6 {[%clk 0:02:35.1]} 5. d3 {[%clk 0:02:58]}
5... c6 {[%clk 0:02:33.7]} 6. Qe2 {[%clk 0:02:54.8]} 6... Bg4 {[%clk 0:02:28.8]}
7. f3 {[%clk 0:02:54.9]} 7... Bh5 {[%clk 0:02:27.8]} 8. g4 {[%clk 0:02:52]} 8...
Bg6 {[%clk 0:02:26.9]} 9. h4 {[%clk 0:02:48.9]} 9... h5 {[%clk 0:02:23.9]} 10.
g5 {[%clk 0:02:41]} 10... Nd5 {[%clk 0:02:19.3]} 11. Bd2 {[%clk 0:02:41.3]}
11... Nxc3 {[%clk 0:02:18.6]} 12. Bxc3 {[%clk 0:02:40.4]} 12... Qc7 {[%clk
0:02:19.3]} 13. Be5 {[%clk 0:02:38.1]} 13... Qa5+ {[%clk 0:02:16.6]} 14. Bc3
{[%clk 0:02:30.1]} 14... Qc7 {[%clk 0:02:14.5]} 15. Nh3 {[%clk 0:02:27.1]} 15...
e6 {[%clk 0:02:09.3]} 16. O-O-O {[%clk 0:02:22.6]} 16... Na6 {[%clk 0:02:07]}
17. Bxe6 {[%clk 0:02:19.4]} 17... Qe7 {[%clk 0:02:02.2]} 18. Nf4 {[%clk
0:02:19.3]} 18... Nc7 {[%clk 0:01:49.1]} 19. Rhe1 {[%clk 0:01:51]} 19... Nxe6
{[%clk 0:01:44.4]} 20. Nxg6 {[%clk 0:01:49.7]} 20... fxg6 {[%clk 0:01:45.3]} 21.
Qxe6 {[%clk 0:01:49.7]} 21... Qxe6 {[%clk 0:01:43.3]} 22. Rxe6+ {[%clk
0:01:50.6]} 22... Kf7 {[%clk 0:01:43.9]} 23. Rde1 {[%clk 0:01:51.2]} 23... Rd8
{[%clk 0:01:36.8]} 24. Kd2 {[%clk 0:01:44]} 24... Bd6 {[%clk 0:01:31.9]} 25.
R6e4 {[%clk 0:01:21.6]} 25... Rhf8 {[%clk 0:01:17.8]} 26. f4 {[%clk 0:01:15]}
26... Kg8 {[%clk 0:01:14.2]} 27. Ke3 {[%clk 0:01:08.2]} 27... Rf5 {[%clk
0:00:51.4]} 28. Be5 {[%clk 0:01:02.1]} 28... Bxe5 {[%clk 0:00:45.8]} 29. Rxe5
{[%clk 0:01:01.8]} 29... Rxe5+ {[%clk 0:00:42.6]} 30. fxe5 {[%clk 0:01:02.1]}
30... Kf7 {[%clk 0:00:43.5]} 31. d4 {[%clk 0:00:57.3]} 31... Ke6 {[%clk
0:00:40.2]} 32. Rf1 {[%clk 0:00:57.7]} 32... c5 {[%clk 0:00:32.4]} 33. c3 {[%clk
0:00:58]} 33... cxd4+ {[%clk 0:00:32.8]} 34. cxd4 {[%clk 0:00:58.9]} 34... Kd5
{[%clk 0:00:19.3]} 35. Rf7 {[%clk 0:00:57]} 35... b5 {[%clk 0:00:18]} 36. Rxg7
{[%clk 0:00:56.5]} 36... Rf8 {[%clk 0:00:16.9]} 37. Rxg6 {[%clk 0:00:56.4]}
37... Rf1 {[%clk 0:00:14.8]} 38. Rd6+ {[%clk 0:00:56.3]} 38... Kc4 {[%clk
0:00:15.4]} 39. b3+ {[%clk 0:00:55.2]} 39... Kc3 {[%clk 0:00:14.6]} 40. e6
{[%clk 0:00:55.4]} 40... Re1+ {[%clk 0:00:14.5]} 41. Kf4 {[%clk 0:00:55.8]}
41... Kb2 {[%clk 0:00:14.3]} 42. g6 {[%clk 0:00:55.6]} 42... Kxa2 {[%clk
0:00:14.2]} 43. g7 {[%clk 0:00:56]} 43... Rf1+ {[%clk 0:00:15.1]} 44. Kg5 {[%clk
0:00:56]} 44... Rg1+ {[%clk 0:00:15.3]} 45. Kh6 {[%clk 0:00:56.3]} 45... Kxb3
{[%clk 0:00:15.5]} 46. e7 {[%clk 0:00:56.8]} 46... a5 {[%clk 0:00:15.1]} 47.
e8=Q {[%clk 0:00:57.2]} 1-0

[Event "Late-Titled-Tuesday-Blitz-March-12-2024"]
[Site "Chess.com"]
[Date "2024.03.12"]
[Round "9"]
[White "cthulhuuu"]
[Black "The_Machine04"]
[Result "0-1"]
[WhiteElo "2445"]
[BlackElo "2821"]
[TimeControl "180+1"]
[EndTime "15:42:01 PDT"]
[Termination "The_Machine04 won on time"]

1. e4 {[%clk 0:03:00.2]} 1... d6 {[%clk 0:02:58.8]} 2. d4 {[%clk 0:03:00.3]}
2... Nf6 {[%clk 0:02:58.4]} 3. Nc3 {[%clk 0:03:01]} 3... e5 {[%clk 0:02:58.1]}
4. dxe5 {[%clk 0:03:00.6]} 4... dxe5 {[%clk 0:02:59]} 5. Qxd8+ {[%clk
0:03:00.8]} 5... Kxd8 {[%clk 0:02:59.9]} 6. Bc4 {[%clk 0:03:01.2]} 6... Be6
{[%clk 0:02:59.6]} 7. Bxe6 {[%clk 0:03:01.5]} 7... fxe6 {[%clk 0:03:00.5]} 8. f3
{[%clk 0:03:01.9]} 8... Bd6 {[%clk 0:03:00.6]} 9. Nh3 {[%clk 0:03:02]} 9... Ke7
{[%clk 0:03:01.5]} 10. Nf2 {[%clk 0:03:00.1]} 10... Nbd7 {[%clk 0:03:02.4]} 11.
Nd3 {[%clk 0:02:58.5]} 11... a6 {[%clk 0:03:02.8]} 12. Be3 {[%clk 0:02:52.5]}
12... h6 {[%clk 0:03:01.6]} 13. a4 {[%clk 0:02:51.7]} 13... g5 {[%clk
0:02:59.6]} 14. O-O {[%clk 0:02:48.3]} 14... Rag8 {[%clk 0:02:58.7]} 15. g3
{[%clk 0:02:24.2]} 15... h5 {[%clk 0:02:57.2]} 16. Kg2 {[%clk 0:02:24.1]} 16...
h4 {[%clk 0:02:56.6]} 17. g4 {[%clk 0:02:23.1]} 17... Nh7 {[%clk 0:02:46.6]} 18.
a5 {[%clk 0:02:06.1]} 18... Ndf8 {[%clk 0:02:42.5]} 19. Na4 {[%clk 0:01:59]}
19... Ng6 {[%clk 0:02:41.8]} 20. Nac5 {[%clk 0:01:57.7]} 20... Rb8 {[%clk
0:02:42.3]} 21. h3 {[%clk 0:01:29.1]} 21... Nf4+ {[%clk 0:02:38.4]} 22. Bxf4
{[%clk 0:01:23.2]} 22... gxf4 {[%clk 0:02:39.3]} 23. Ra3 {[%clk 0:01:03.1]}
23... Rhd8 {[%clk 0:02:36.9]} 24. Rb3 {[%clk 0:00:58.3]} 24... Bxc5 {[%clk
0:01:56.5]} 25. Nxc5 {[%clk 0:00:59.2]} 25... Rd2+ {[%clk 0:01:56.4]} 26. Rf2
{[%clk 0:00:59.4]} 26... Rbd8 {[%clk 0:01:56.4]} 27. Nd3 {[%clk 0:00:50.2]}
27... Rxf2+ {[%clk 0:01:47.5]} 28. Kxf2 {[%clk 0:00:51.1]} 28... Ng5 {[%clk
0:01:46.4]} 29. Kg2 {[%clk 0:00:47.7]} 29... c5 {[%clk 0:01:32.9]} 30. Rxb7+
{[%clk 0:00:45.5]} 30... Kf6 {[%clk 0:01:32]} 31. b3 {[%clk 0:00:36.9]} 31...
Rc8 {[%clk 0:01:30.9]} 32. Nf2 {[%clk 0:00:04.7]} 32... c4 {[%clk 0:01:27.7]}
33. b4 {[%clk 0:00:04.3]} 33... Nf7 {[%clk 0:01:17.8]} 34. b5 {[%clk 0:00:02.1]}
34... axb5 {[%clk 0:01:13.4]} 35. Rxb5 {[%clk 0:00:03]} 35... Ra8 {[%clk
0:01:07.6]} 36. Rc5 {[%clk 0:00:03.3]} 36... Nd6 {[%clk 0:01:03.1]} 37. Rc6
{[%clk 0:00:03.6]} 37... Ke7 {[%clk 0:01:03.2]} 38. a6 {[%clk 0:00:03.5]} 38...
Kd7 {[%clk 0:00:59.5]} 39. Rb6 {[%clk 0:00:03.8]} 39... Kc7 {[%clk 0:00:58.7]}
40. Rb4 {[%clk 0:00:01.6]} 40... Rxa6 {[%clk 0:00:58.7]} 0-1

[Event "Late-Titled-Tuesday-Blitz-March-12-2024"]
[Site "Chess.com"]
[Date "2024.03.12"]
[Round "9"]
[White "ContrVersia"]
[Black "BabageldiAnnaberdiyev"]
[Result "1-0"]
[WhiteElo "2870"]
[BlackElo "2656"]
[TimeControl "180+1"]
[EndTime "15:42:01 PDT"]
[Termination "ContrVersia won by resignation"]

1. d4 {[%clk 0:02:54.8]} 1... e6 {[%clk 0:03:00.2]} 2. c4 {[%clk 0:02:54.9]}
2... f5 {[%clk 0:02:59.7]} 3. g3 {[%clk 0:02:54.8]} 3... Nf6 {[%clk 0:03:00.1]}
4. Bg2 {[%clk 0:02:55]} 4... d5 {[%clk 0:03:00.8]} 5. Nh3 {[%clk 0:02:54.7]}
5... c6 {[%clk 0:03:00]} 6. O-O {[%clk 0:02:54.5]} 6... Bd6 {[%clk 0:03:00.5]}
7. Bf4 {[%clk 0:02:54.4]} 7... O-O {[%clk 0:03:01]} 8. Nd2 {[%clk 0:02:54.5]}
8... a5 {[%clk 0:03:00.8]} 9. Qc2 {[%clk 0:02:54.5]} 9... Ne4 {[%clk 0:02:59.7]}
10. Nf3 {[%clk 0:02:54.6]} 10... Qe7 {[%clk 0:02:57.7]} 11. Bxd6 {[%clk
0:02:53.9]} 11... Qxd6 {[%clk 0:02:57.6]} 12. Nf4 {[%clk 0:02:53.8]} 12... Nd7
{[%clk 0:02:54]} 13. Nd3 {[%clk 0:02:53.8]} 13... b6 {[%clk 0:02:52.3]} 14. Rfd1
{[%clk 0:02:31.2]} 14... Bb7 {[%clk 0:02:51.4]} 15. Rac1 {[%clk 0:02:29.4]}
15... Rfc8 {[%clk 0:02:32]} 16. Nfe5 {[%clk 0:02:21.4]} 16... Nxe5 {[%clk
0:02:22.6]} 17. dxe5 {[%clk 0:02:21.1]} 17... Qe7 {[%clk 0:02:20.4]} 18. Nf4
{[%clk 0:01:53.4]} 18... Nc5 {[%clk 0:02:16.1]} 19. h4 {[%clk 0:01:50.4]} 19...
g6 {[%clk 0:01:55.4]} 20. b3 {[%clk 0:01:47.3]} 20... Kg7 {[%clk 0:01:55.2]} 21.
e3 {[%clk 0:01:42.7]} 21... h6 {[%clk 0:01:53]} 22. Qe2 {[%clk 0:01:30.2]} 22...
Ba6 {[%clk 0:01:49.4]} 23. Qf3 {[%clk 0:01:14.1]} 23... Bb7 {[%clk 0:01:42.8]}
24. Rd4 {[%clk 0:01:06.4]} 24... Ne4 {[%clk 0:01:41.7]} 25. g4 {[%clk
0:01:02.4]} 25... c5 {[%clk 0:01:38.5]} 26. Rdd1 {[%clk 0:01:02.6]} 26... d4
{[%clk 0:01:38]} 27. gxf5 {[%clk 0:00:58.7]} 27... exf5 {[%clk 0:01:36.9]} 28.
exd4 {[%clk 0:00:58]} 28... cxd4 {[%clk 0:01:36]} 29. Rxd4 {[%clk 0:00:57.7]}
29... Rd8 {[%clk 0:01:27.6]} 30. Rcd1 {[%clk 0:00:53.6]} 30... Rxd4 {[%clk
0:01:27.4]} 31. Rxd4 {[%clk 0:00:54.5]} 31... Rc8 {[%clk 0:01:17.5]} 32. h5
{[%clk 0:00:49.9]} 32... Rc7 {[%clk 0:01:07]} 33. Nxg6 {[%clk 0:00:49.1]} 33...
Qg5 {[%clk 0:01:06.8]} 34. Nf4 {[%clk 0:00:38]} 34... Re7 {[%clk 0:00:53.7]} 35.
Rd7 {[%clk 0:00:33]} 35... Rxd7 {[%clk 0:00:47.2]} 36. Ne6+ {[%clk 0:00:33.2]}
36... Kg8 {[%clk 0:00:40.9]} 37. Nxg5 {[%clk 0:00:34.1]} 37... Nxg5 {[%clk
0:00:31.3]} 38. Qxf5 {[%clk 0:00:34.3]} 38... Rd1+ {[%clk 0:00:26]} 39. Kh2
{[%clk 0:00:34.2]} 39... Bxg2 {[%clk 0:00:26.6]} 40. Qg6+ {[%clk 0:00:33.2]}
40... Kf8 {[%clk 0:00:24.4]} 41. Qxh6+ {[%clk 0:00:33.4]} 41... Ke8 {[%clk
0:00:23.7]} 1-0

[Event "Late-Titled-Tuesday-Blitz-March-12-2024"]
[Site "Chess.com"]
[Date "2024.03.12"]
[Round "9"]
[White "Firouzja2003"]
[Black "DenLaz"]
[Result "0-1"]
[WhiteElo "3139"]
[BlackElo "3071"]
[TimeControl "180+1"]
[EndTime "15:42:06 PDT"]
[Termination "DenLaz won on time"]

1. e4 {[%clk 0:02:59.9]} 1... e5 {[%clk 0:02:59.5]} 2. Nf3 {[%clk 0:02:59.7]}
2... Nc6 {[%clk 0:03:00.1]} 3. Bb5 {[%clk 0:02:59.1]} 3... Nf6 {[%clk
0:03:00.2]} 4. d3 {[%clk 0:02:59.2]} 4... Bc5 {[%clk 0:03:00.6]} 5. c3 {[%clk
0:02:59]} 5... O-O {[%clk 0:03:00.5]} 6. O-O {[%clk 0:02:57.9]} 6... d5 {[%clk
0:03:01]} 7. Nbd2 {[%clk 0:02:58.3]} 7... dxe4 {[%clk 0:03:01]} 8. dxe4 {[%clk
0:02:59.2]} 8... a5 {[%clk 0:03:01.5]} 9. a4 {[%clk 0:02:56.2]} 9... Qe7 {[%clk
0:03:01.4]} 10. Re1 {[%clk 0:02:56.7]} 10... Rd8 {[%clk 0:02:59.7]} 11. h3
{[%clk 0:02:55.7]} 11... h6 {[%clk 0:02:58.1]} 12. Qc2 {[%clk 0:02:55.8]} 12...
Nb8 {[%clk 0:02:58.3]} 13. Bf1 {[%clk 0:02:54.8]} 13... b6 {[%clk 0:02:57.2]}
14. Nc4 {[%clk 0:02:51]} 14... Nbd7 {[%clk 0:02:57.6]} 15. Ne3 {[%clk
0:02:42.7]} 15... Bxe3 {[%clk 0:02:57.2]} 16. Bxe3 {[%clk 0:02:41.9]} 16... Bb7
{[%clk 0:02:58.1]} 17. Nd2 {[%clk 0:02:37.5]} 17... Nc5 {[%clk 0:02:58.3]} 18.
f3 {[%clk 0:02:37.4]} 18... Nh5 {[%clk 0:02:57.9]} 19. Bc4 {[%clk 0:02:29.2]}
19... Ne6 {[%clk 0:02:53.9]} 20. Nf1 {[%clk 0:02:27.2]} 20... Ba6 {[%clk
0:02:46.3]} 21. Bd5 {[%clk 0:02:24.2]} 21... Rac8 {[%clk 0:02:45.7]} 22. Rad1
{[%clk 0:01:48]} 22... Nef4 {[%clk 0:02:37.1]} 23. Bxf4 {[%clk 0:01:48.1]} 23...
Nxf4 {[%clk 0:02:36.4]} 24. Ne3 {[%clk 0:01:48.5]} 24... Qg5 {[%clk 0:02:33.7]}
25. Kh2 {[%clk 0:01:45.8]} 25... c6 {[%clk 0:02:28.6]} 26. Bc4 {[%clk
0:01:45.4]} 26... Bxc4 {[%clk 0:01:35.6]} 27. Nxc4 {[%clk 0:01:44.8]} 27... b5
{[%clk 0:01:36.5]} 28. axb5 {[%clk 0:01:22.2]} 28... cxb5 {[%clk 0:01:34.8]} 29.
Nxa5 {[%clk 0:01:22.2]} 29... b4 {[%clk 0:01:31]} 30. c4 {[%clk 0:01:05.8]}
30... Rxd1 {[%clk 0:01:28.5]} 31. Rxd1 {[%clk 0:01:05.9]} 31... Rc5 {[%clk
0:01:29.2]} 32. Ra1 {[%clk 0:00:58.5]} 32... Rc7 {[%clk 0:01:12.2]} 33. Rd1
{[%clk 0:00:24.6]} 33... Rc5 {[%clk 0:01:07.4]} 34. Ra1 {[%clk 0:00:25.1]} 34...
Rc7 {[%clk 0:01:07.2]} 35. g3 {[%clk 0:00:21.9]} 35... Ne6 {[%clk 0:01:03.6]}
36. Nb3 {[%clk 0:00:17.1]} 36... Qe3 {[%clk 0:01:03.5]} 37. Kg2 {[%clk
0:00:17.8]} 37... h5 {[%clk 0:00:49.9]} 38. h4 {[%clk 0:00:17.7]} 38... g5
{[%clk 0:00:49.9]} 39. Rh1 {[%clk 0:00:18.2]} 39... Rd7 {[%clk 0:00:49.5]} 40.
hxg5 {[%clk 0:00:09.7]} 40... Rd3 {[%clk 0:00:47.4]} 41. Re1 {[%clk 0:00:07.7]}
41... Qxf3+ {[%clk 0:00:46.2]} 0-1

[Event "Late-Titled-Tuesday-Blitz-March-12-2024"]
[Site "Chess.com"]
[Date "2024.03.12"]
[Round "9"]
[White "mbojan"]
[Black "CaspiIsrael"]
[Result "0-1"]
[WhiteElo "2867"]
[BlackElo "2697"]
[TimeControl "180+1"]
[EndTime "15:42:07 PDT"]
[Termination "CaspiIsrael won on time"]

1. a3 {[%clk 0:02:57]} 1... e5 {[%clk 0:02:59.1]} 2. e3 {[%clk 0:02:56.5]} 2...
d5 {[%clk 0:02:59.1]} 3. d4 {[%clk 0:02:57.3]} 3... Nc6 {[%clk 0:02:58.1]} 4.
Nf3 {[%clk 0:02:54.5]} 4... e4 {[%clk 0:02:57.6]} 5. Nfd2 {[%clk 0:02:54.7]}
5... Nce7 {[%clk 0:02:56.8]} 6. c4 {[%clk 0:02:54.7]} 6... c6 {[%clk 0:02:57.3]}
7. Nc3 {[%clk 0:02:54.3]} 7... Nf6 {[%clk 0:02:55.5]} 8. f3 {[%clk 0:02:54.1]}
8... Nf5 {[%clk 0:02:54.6]} 9. Nb3 {[%clk 0:02:39.7]} 9... exf3 {[%clk
0:02:54.5]} 10. Qxf3 {[%clk 0:02:38.5]} 10... Bd6 {[%clk 0:02:52]} 11. cxd5
{[%clk 0:02:38.7]} 11... cxd5 {[%clk 0:02:52]} 12. Bd3 {[%clk 0:02:35]} 12...
Nh4 {[%clk 0:02:48.3]} 13. Qe2 {[%clk 0:02:31.6]} 13... O-O {[%clk 0:02:43]} 14.
O-O {[%clk 0:02:28.9]} 14... Re8 {[%clk 0:02:38.7]} 15. g3 {[%clk 0:02:25.6]}
15... Ng6 {[%clk 0:02:26.8]} 16. Qg2 {[%clk 0:02:25.3]} 16... Be6 {[%clk
0:02:19.8]} 17. Bd2 {[%clk 0:02:12.7]} 17... Qd7 {[%clk 0:02:19.3]} 18. Rfe1
{[%clk 0:02:02.7]} 18... Bh3 {[%clk 0:02:18.6]} 19. Qh1 {[%clk 0:02:02.3]} 19...
Qe6 {[%clk 0:02:14.8]} 20. Qf3 {[%clk 0:01:57.6]} 20... Bg4 {[%clk 0:02:13.8]}
21. Qg2 {[%clk 0:01:58]} 21... Rad8 {[%clk 0:02:11.3]} 22. Rac1 {[%clk
0:01:56.7]} 22... a6 {[%clk 0:02:10.9]} 23. Nc5 {[%clk 0:01:54.8]} 23... Bxc5
{[%clk 0:02:04.6]} 24. dxc5 {[%clk 0:01:55.7]} 24... Ne5 {[%clk 0:02:05]} 25.
Be2 {[%clk 0:01:47.5]} 25... h5 {[%clk 0:02:04]} 26. Rf1 {[%clk 0:01:47.6]}
26... Bh3 {[%clk 0:01:56.8]} 27. Qf2 {[%clk 0:01:43.9]} 27... Neg4 {[%clk
0:01:53.3]} 28. Qf4 {[%clk 0:01:39.7]} 28... Bxf1 {[%clk 0:01:51.3]} 29. Bxf1
{[%clk 0:01:40.3]} 29... Nxe3 {[%clk 0:01:45.8]} 30. Bd3 {[%clk 0:01:40.9]}
30... d4 {[%clk 0:01:43.7]} 31. Ne2 {[%clk 0:01:40.4]} 31... Qh3 {[%clk
0:01:34.4]} 32. Qf3 {[%clk 0:01:31.5]} 32... Nfg4 {[%clk 0:01:32.3]} 33. Qh1
{[%clk 0:01:28]} 33... Ne5 {[%clk 0:01:19.6]} 34. Nf4 {[%clk 0:01:25.2]} 34...
Qg4 {[%clk 0:01:16.4]} 35. Be4 {[%clk 0:01:25.6]} 35... h4 {[%clk 0:01:14.1]}
36. Be1 {[%clk 0:01:17.5]} 36... d3 {[%clk 0:01:12.7]} 37. h3 {[%clk 0:01:11.5]}
37... Qg5 {[%clk 0:01:12]} 38. Qh2 {[%clk 0:01:04.3]} 38... d2 {[%clk
0:01:10.4]} 39. Bxd2 {[%clk 0:01:03.1]} 39... hxg3 {[%clk 0:01:08.5]} 40. Qe2
{[%clk 0:01:02.8]} 40... Rxd2 {[%clk 0:01:08.3]} 41. Qxe3 {[%clk 0:00:59.9]}
41... Rf2 {[%clk 0:01:02.3]} 42. Nd5 {[%clk 0:00:48.8]} 42... Qh4 {[%clk
0:00:58]} 43. Bg2 {[%clk 0:00:12.8]} 43... Nf3+ {[%clk 0:00:57.2]} 0-1

[Event "Late-Titled-Tuesday-Blitz-March-12-2024"]
[Site "Chess.com"]
[Date "2024.03.12"]
[Round "9"]
[White "bascheyaro"]
[Black "dropstoneDP"]
[Result "0-1"]
[WhiteElo "2793"]
[BlackElo "2978"]
[TimeControl "180+1"]
[EndTime "15:42:08 PDT"]
[Termination "dropstoneDP won by resignation"]

1. d4 {[%clk 0:03:00.9]} 1... d5 {[%clk 0:02:49.8]} 2. Nf3 {[%clk 0:03:00.6]}
2... Nf6 {[%clk 0:02:49.6]} 3. c4 {[%clk 0:03:00.7]} 3... dxc4 {[%clk
0:02:49.9]} 4. Nc3 {[%clk 0:03:01.2]} 4... a6 {[%clk 0:02:49.6]} 5. Bg5 {[%clk
0:03:01.5]} 5... b5 {[%clk 0:02:49.2]} 6. Bxf6 {[%clk 0:03:01.8]} 6... exf6
{[%clk 0:02:47.8]} 7. g3 {[%clk 0:03:01.8]} 7... Bb7 {[%clk 0:02:46.8]} 8. Bg2
{[%clk 0:03:02.3]} 8... Be7 {[%clk 0:02:43.1]} 9. O-O {[%clk 0:03:02.4]} 9...
Nd7 {[%clk 0:02:40.8]} 10. a4 {[%clk 0:03:02.2]} 10... b4 {[%clk 0:02:39]} 11.
Na2 {[%clk 0:03:01.5]} 11... c5 {[%clk 0:02:31.5]} 12. dxc5 {[%clk 0:02:55.6]}
12... Nxc5 {[%clk 0:02:23.9]} 13. Rc1 {[%clk 0:02:29.6]} 13... Qxd1 {[%clk
0:02:18.4]} 14. Rfxd1 {[%clk 0:02:26.6]} 14... Nxa4 {[%clk 0:02:17.6]} 15. Rd2
{[%clk 0:02:15.3]} 15... Rc8 {[%clk 0:02:10.9]} 16. Nd4 {[%clk 0:02:04.3]} 16...
Bxg2 {[%clk 0:02:09.8]} 17. Kxg2 {[%clk 0:02:05.2]} 17... a5 {[%clk 0:01:40]}
18. Nf5 {[%clk 0:01:33.6]} 18... g6 {[%clk 0:01:37.2]} 19. Nxe7 {[%clk
0:01:33.9]} 19... Kxe7 {[%clk 0:01:37.4]} 20. Rd5 {[%clk 0:01:34.6]} 20... Rc5
{[%clk 0:01:22.9]} 21. Rxc5 {[%clk 0:01:34.4]} 21... Nxc5 {[%clk 0:01:23.8]} 22.
Rxc4 {[%clk 0:01:34.8]} 22... Nb3 {[%clk 0:01:24.2]} 23. Rc7+ {[%clk 0:01:12.3]}
23... Ke6 {[%clk 0:01:21.3]} 24. Rc6+ {[%clk 0:01:12.6]} 24... Ke5 {[%clk
0:01:00.8]} 25. f4+ {[%clk 0:01:11.9]} 25... Kd5 {[%clk 0:01:01.4]} 26. Rxf6
{[%clk 0:01:11.5]} 26... Rc8 {[%clk 0:01:01.8]} 27. Kf3 {[%clk 0:01:06.6]} 27...
Rc2 {[%clk 0:00:59.6]} 28. e4+ {[%clk 0:01:06.5]} 28... Kc5 {[%clk 0:00:57.4]}
29. Rxf7 {[%clk 0:01:03.7]} 29... Rxb2 {[%clk 0:00:55.7]} 30. Nc1 {[%clk
0:00:57.8]} 30... Nxc1 {[%clk 0:00:55.6]} 31. Rc7+ {[%clk 0:00:57.8]} 31... Kd4
{[%clk 0:00:55.8]} 32. Rxc1 {[%clk 0:00:58.7]} 32... Rb3+ {[%clk 0:00:55]} 33.
Kg4 {[%clk 0:00:58.6]} 33... Kxe4 {[%clk 0:00:55.5]} 34. Kg5 {[%clk 0:00:41.9]}
34... a4 {[%clk 0:00:53.5]} 35. g4 {[%clk 0:00:41.5]} 35... Rc3 {[%clk
0:00:52.5]} 36. Re1+ {[%clk 0:00:40.2]} 36... Kd4 {[%clk 0:00:43.4]} 37. f5
{[%clk 0:00:35.3]} 37... gxf5 {[%clk 0:00:44.3]} 38. gxf5 {[%clk 0:00:35.7]}
38... Rf3 {[%clk 0:00:44.1]} 39. Re7 {[%clk 0:00:29.4]} 39... a3 {[%clk
0:00:44]} 40. Rxh7 {[%clk 0:00:29.7]} 40... a2 {[%clk 0:00:43.4]} 41. Ra7 {[%clk
0:00:29.4]} 41... Ra3 {[%clk 0:00:40.9]} 42. Rd7+ {[%clk 0:00:26.5]} 42... Ke5
{[%clk 0:00:41]} 0-1